Workbook

Sheet Титульный
A1: SHABLON.TSO.2023
A2: Версия 1.0.6
B4: Информация о плате за техприсоединение к электросетям
B6: Наименование организации | C6: Акционерное общество "Верхнесалдинские электрические сети"
B7: ИНН | C7: 6623130658
B8: КПП | C8: 662301001
B9: Наименование (описание) обособленного подразделения | C9: нет
B10: Организационно-правовая форма | C10: Акционерное общество
B11: Вид деятельности | C11: Передача электрической энергии, технологическое присоединение к электрическим сетям
B12: Период | C12: 2022
C13: Адрес регулируемой организации
B14: Юридический адрес | C14: 624761, Свердловская область, г. Верхняя Салда, ул Молодежный поселок, д. 102А, офис 1
B15: Почтовый адрес | C15: 624761, Свердловская область, г. Верхняя Салда, ул Молодежный поселок, д. 102А, офис 1
C16: Руководитель
B17: Фамилия, имя, отчество | C17: Арсеньев Владимир Валерьевич
B18: Телефон | C18: 7 (34345) 5-66-63
C19: Ответственный за предоставление информации (от регулируемой организации)
B20: Фамилия, имя, отчество | C20: Михайлова Ольга Анатольевна
B21: Должность | C21: Начальник отдела ценообразования услуг в электроэнергетике
B22: Контактный телефон | C22: 8(343)286-05-81 доб.1390
B23: e-mail | C23: OBateneva@okenergo.com

Sheet Инструкция
B2: Инструкция по заполнению приложений, направленных письмом Региональной энергетической комиссии Свердловской области (далее – РЭК Свердловской области), разработанных в соответствии с методическими указаниями по определению размера платы за технологическое присоединение к электрическим сетям, утвержденными приказом ФАС России от 30.06.2022 № 490/22
B3: 1. Ячейки голубого цвета подлежат обязательному заполнению территориальной сетевой организацией (далее – ТСО), ячейки желтого цвета предназначены для заполнения ТСО, ячейки зеленого цвета не подлежат заполнению.
B4: ="2. Показатели в приложении 1 заполняются в отношении построенных и введенных в эксплуатацию объектов электросетевого хозяйства "&"ТСО за периоды "&IF(Титульный!C12="","--- выберите период на листе Титульный.",(Титульный!C12-3)&", "&(Титульный!C12-2)&", "&(Титульный!C12-1)&" годы.") -> 2. Показатели в приложении 1 заполняются в отношении построенных и введенных в эксплуатацию объектов электросетевого хозяйства ТСО за периоды 2019, 2020, 2021 годы.
B5: ="3. Показатели в приложении 1 заполняются для территорий городских населенных пунктов и для территорий, " & "не относящихся к городским населенным пунктам без разделения по типу." -> 3. Показатели в приложении 1 заполняются для территорий городских населенных пунктов и для территорий, не относящихся к городским населенным пунктам без разделения по типу.
B6: 4. Показатели в приложениях 2.1, 2.2, 2.3, 3.1, 3.2 заполняются за 2019, 2020, 2021 годы.
B8: I. Заполнение приложения 1.
B9: 1) Приложение 1 заполняется для территорий городских населенных пунктов и для территорий, не относящихся к городским населенным пунктам без разделения по типу.
B10: 2) В графе 2 указываются характеристики объекта электросетевого хозяйства/средства коммерческого учета электрической энергии (мощности), введенного в эксплуатацию (наименование мероприятия, выполненного ТСО в соответствии с выданными техническими условиями).
B12: 3) В графах 3, 6, 9 указывается протяженность воздушной или кабельной линий электропередачи (далее – ЛЭП) в километрах по трассе (без учета количества кабелей (проводов) в линии), а также количество пунктов секционирования и точек учета электрической энергии (мощности) в штуках.
B13: 4) В графах 4, 7, 10 указывается размер максимальной мощности энергопринимающего устройства заявителя с учетом третьей категории надежности.
B14: 5) В графах 5, 8, 11 указываются расходы на строительство введенных в эксплуатацию объектов электросетевого хозяйства ТСО, а также на обеспечение средствами коммерческого учета электрической энергии (мощности), в соответствии с учетной политикой ТСО (например: стоимость принимаемых основных фондов согласно формам КС-14, КС-11).
B15: 6) В графах 5, 8, 11, 14 указывается размерность показателей с учётом обязательного заполнения трех знаков после запятой.
B16: 7) Графы 12-14 заполняются ТСО только в случае, если за 3 предыдущих года ТСО не осуществлялось строительство объектов электросетевого хозяйства, а также обеспечение средствами коммерческого учета электрической энергии (мощности), в отношении которых устанавливаются стандартизированные тарифные ставки, по планируемым расходам, определенным по сметам, выполненным с применением сметных нормативов.
B17: ="8) За периоды " &IF(Титульный!C12="","--- выберите период на листе Титульный --- ",(Титульный!C12-3)&", "&(Титульный!C12-2)&", "&(Титульный!C12-1)&" годы ") & "всем ТСО необходимо представить в РЭК Свердловской области документы, подтверждающие расходы на выполнение мероприятий по строительству объектов электросетевого хозяйства ТСО, а также на обеспечение средствами коммерческого учета электрической энергии." -> 8) За периоды 2019, 2020, 2021 годы всем ТСО необходимо представить в РЭК Свердловской области документы, подтверждающие расходы на выполнение мероприятий по строительству объектов электросетевого хозяйства ТСО, а также на обеспечение средствами коммерческого учета электрической энергии.
B19: II. Заполнение приложений 2.1, 2.2, 2.3.
B20: ="1) Приложение 2.1 заполняется за " &IF(Титульный!C12="","--- выберите период на листе Титульный.",(Титульный!C12-3)&" год.") -> 1) Приложение 2.1 заполняется за 2019 год.
B21: ="2) Приложение 2.2 заполняется за " &IF(Титульный!C12="","--- выберите период на листе Титульный.",(Титульный!C12-2)&" год.") -> 2) Приложение 2.2 заполняется за 2020 год.
B22: ="3) Приложение 2.3 заполняется за " &IF(Титульный!C12="","--- выберите период на листе Титульный.",(Титульный!C12-1)&" год.") -> 3) Приложение 2.3 заполняется за 2021 год.
B23: 4) В графе 3 пункта 1 указываются расходы ТСО на выполнение мероприятий по подготовке и выдаче технических условий заявителю в тыс. рублей.
B24: 5) В графе 3 пунктов 2.1, 2.2 указываются расходы ТСО на выполнение мероприятий по проверке сетевой организацией выполнения заявителем технических условий в тыс. рублей.
B25: 6) В графе 4 указывается количество технологических присоединений, в штуках.
B26: 7) В графе 5 указывается объем максимальной мощности, в кВт.
B27: ="8) За периоды " &IF(Титульный!C12="","--- выберите период на листе Титульный --- ",(Титульный!C12-3)&", "&(Титульный!C12-2)&", "&(Титульный!C12-1)&" годы ") & "всем ТСО необходимо представить в РЭК Свердловской области документы, подтверждающие расходы, количество техприсоединений, объем максимальной мощности." -> 8) За периоды 2019, 2020, 2021 годы всем ТСО необходимо представить в РЭК Свердловской области документы, подтверждающие расходы, количество техприсоединений, объем максимальной мощности.
B29: III. Заполнение приложений 3.1, 3.2.
B30: 1) Приложение 3.1 заполняется ТСО по мероприятию: подготовка и выдача сетевой организацией технических условий заявителю.
B31: 2) Приложение 3.2 заполняется ТСО по мероприятию: проверка сетевой организацией выполнения заявителем технических условий.
B32: 3) В графах 3-5 указываются расходы на выполнение мероприятий по технологическому присоединению с разбивкой по каждому показателю в тыс. рублей в соответствии с учетной политикой ТСО и бухгалтерской отчетностью.
B33: 4) В графах 3-5 указывается размерность показателей с учётом обязательного заполнения трех знаков после запятой.
B34: ="5) За периоды " &IF(Титульный!C12="","--- выберите период на листе Титульный --- ",(Титульный!C12-3)&", "&(Титульный!C12-2)&", "&(Титульный!C12-1)&" годы ") & "всем ТСО необходимо представить в РЭК Свердловской области документы, подтверждающие расходы по технологическому присоединению." -> 5) За периоды 2019, 2020, 2021 годы всем ТСО необходимо представить в РЭК Свердловской области документы, подтверждающие расходы по технологическому присоединению.

Sheet Прил. № 1
G11: Приложение № 1
A12: dd_hide/show | B12: hide | C12: range_name | D12: address_title | E12: address_svod | G12: Расходы на строительство введенных в эксплуатацию объектов электросетевого хозяйства для целей технологического присоединения и для целей реализации иных мероприятий инвестиционной программы территориальной сетевой организации, а также на обеспечение средствами коммерческого учета электрической энергии (мощности)
G13: № п/п | H13: Объект электросетевого хозяйства/Средство коммерческого учета электрической энергии (мощности) | N13: Год ввода объекта 2019 | R13: Год ввода объекта 2020 | V13: Год ввода объекта 2021 | Z13: План*
N14: уровень напряжения, кВ | O14: протяженность (для линий электропередачи), км. / количество (для пунктов секционирования, точек учета ээ), шт. | P14: максимальная мощность, кВт | Q14: расходы на строительство объекта/на обеспечение средствами коммерческого учета электрической энергии (мощности), тыс. руб. | R14: уровень напряжения, кВ | S14: протяженность (для линий электропередачи), км. / количество (для пунктов секционирования, точек учета ээ), шт. | T14: максимальная мощность, кВт | U14: расходы на строительство объекта/на обеспечение средствами коммерческого учета электрической энергии (мощности), тыс. руб. | V14: уровень напряжения, кВ | W14: протяженность (для линий электропередачи), км. / количество (для пунктов секционирования, точек учета ээ), шт. | X14: максимальная мощность, кВт | Y14: расходы на строительство объекта/на обеспечение средствами коммерческого учета электрической энергии (мощности), тыс. руб. | Z14: уровень напряжения, кВ | AA14: протяженность (для линий электропередачи), км. / количество (для пунктов секционирования, точек учета ээ), шт. | AB14: максимальная мощность, кВт | AC14: расходы на строительство объекта/на обеспечение средствами коммерческого учета электрической энергии (мощности), тыс. руб.
A15: ddShPr11City_rstart | G15: 1 | H15: 2 | N15: 3 | O15: 3 | P15: 4 | Q15: 5 | R15: 7 | S15: 6 | T15: 7 | U15: 8 | V15: 11 | W15: 9 | X15: 10 | Y15: 11 | Z15: 15 | AA15: 12 | AB15: 13 | AC15: 14
G16: 1. | H16: СТРОИТЕЛЬСТВО ВОЗДУШНЫХ ЛИНИЙ ЭЛЕКТРОПЕРЕДАЧИ | O16: =SUM(O18:O26) -> 1.055 | P16: =SUM(P18:P26) -> 76 | Q16: =SUM(Q18:Q26) -> 322.52176 | S16: =SUM(S18:S26) -> 1.209 | T16: =SUM(T18:T26) -> 301 | U16: =SUM(U18:U26) -> 863.91739 | W16: =SUM(W18:W26) -> 4.581 | X16: =SUM(X18:X26) -> 340 | Y16: =SUM(Y18:Y26) -> 3574.73902 | AA16: =SUM(AA18:AA26) -> 0 | AB16: =SUM(AB18:AB26) -> 0 | AC16: =SUM(AC18:AC26) -> 0
H17: тип опор: | I17: тип провода: | J17: материал провода: | K17: сечение провода: | L17: количество цепей: | M17: уровень напряжения:
B18: 1
C19: VL | D19: =ROW($D$17) -> 17 | E19: VL:1.1.4.1.1.1. | F19: Удалить | G19: =$G$16 & (ROWS($G$18:G19)-2)+1&"." -> 1.1. | H19: деревянные | I19: изолированный | J19: алюминиевый | K19: до 50 мм2 включительно | L19: одноцепная | M19: 0,4 кВ и ниже | O19: 0.212 | P19: 30 | Q19: 40.38535 | R19: 40.38535 | W19: 0.757 | X19: 116 | Y19: 330.283
C20: VL | D20: =ROW($D$17) -> 17 | E20: VL:1.1.4.2.1.1. | F20: Удалить | G20: =$G$16 & (ROWS($G$18:G20)-2)+1&"." -> 1.2. | H20: деревянные | I20: изолированный | J20: алюминиевый | K20: от 50 до 100 мм2 включительно | L20: одноцепная | M20: 0,4 кВ и ниже | W20: =0.641+0.521 -> 1.162 | X20: =10+50 -> 60 | Y20: =405.70137+188.93696 -> 594.63833
C21: VL | D21: =ROW($D$17) -> 17 | E21: VL:2.1.4.1.1.1. | F21: Удалить | G21: =$G$16 & (ROWS($G$18:G21)-2)+1&"." -> 1.3. | H21: железобетонные опоры | I21: изолированный | J21: алюминиевый | K21: до 50 мм2 включительно | L21: одноцепная | M21: 0,4 кВ и ниже | O21: 0.129 | P21: 31 | Q21: 74.21641 | S21: 0.973 | T21: 271 | U21: 656.68674 | W21: =0.775+1.145 -> 1.92 | X21: =115+24 -> 139 | Y21: =469.473+565.786 -> 1035.259
C22: VL | D22: =ROW($D$17) -> 17 | E22: VL:2.1.4.1.1.2. | F22: Удалить | G22: =$G$16 & (ROWS($G$18:G22)-2)+1&"." -> 1.4. | H22: железобетонные опоры | I22: изолированный | J22: алюминиевый | K22: до 50 мм2 включительно | L22: одноцепная | M22: 1-20 кВ | O22: 0.714 | P22: 15 | Q22: 207.92 | S22: 0.036 | T22: 15 | U22: 63.65783 | W22: 0.015 | X22: 15 | Y22: 135.38404
C23: VL | D23: =ROW($D$17) -> 17 | E23: VL:2.1.4.2.1.1. | F23: Удалить | G23: =$G$16 & (ROWS($G$18:G23)-2)+1&"." -> 1.5. | H23: железобетонные опоры | I23: изолированный | J23: алюминиевый | K23: от 50 до 100 мм2 включительно | L23: одноцепная | M23: 0,4 кВ и ниже | S23: 0.2 | T23: 15 | U23: 143.57282
C24: VL | D24: =ROW($D$17) -> 17 | E24: VL:2.1.4.2.1.2. | F24: Удалить | G24: =$G$16 & (ROWS($G$18:G24)-2)+1&"." -> 1.6. | H24: железобетонные опоры | I24: изолированный | J24: алюминиевый | K24: от 50 до 100 мм2 включительно | L24: одноцепная | M24: 1-20 кВ | W24: 0.727 | X24: 10 | Y24: 1479.17465
B25: 1 | C25: VL | D25: =ROW($D$17) -> 17 | F25: Удалить | G25: =$G$16 & (ROWS($G$18:G25)-2)+1&"." -> 1.7.
B26: 1
H27: Добавить
B28: 1
G29: 2. | H29: СТРОИТЕЛЬСТВО КАБЕЛЬНЫХ ЛИНИЙ ЭЛЕКТРОПЕРЕДАЧИ | O29: =SUM(O31:O36) -> 0 | P29: =SUM(P31:P36) -> 0 | Q29: =SUM(Q31:Q36) -> 0 | S29: =SUM(S31:S36) -> 0.38 | T29: =SUM(T31:T36) -> 132 | U29: =SUM(U31:U36) -> 338.17923 | W29: =SUM(W31:W36) -> 0.092 | X29: =SUM(X31:X36) -> 280 | Y29: =SUM(Y31:Y36) -> 114.04149 | AA29: =SUM(AA31:AA36) -> 0 | AB29: =SUM(AB31:AB36) -> 0 | AC29: =SUM(AC31:AC36) -> 0
H30: способ прокладки: | I30: количество жил: | J30: тип изоляции: | K30: сечение провода: | L30: количество кабелей в траншее, канале, туннеле или коллекторе, на галерее или эстакаде, труб в скважине: | M30: уровень напряжения:
B31: 1
C32: KL | D32: =ROW($D$30) -> 30 | E32: KL:1.2.1.2.1.1. | F32: Удалить | G32: =$G$29 & (ROWS($G$31:G32)-2)+1&"." -> 2.1. | H32: в траншеях | I32: многожильные | J32: резиновая и пластмассовая | K32: от 50 до 100 мм2 включительно | L32: один | M32: 0,4 кВ и ниже | W32: 0.062 | X32: 140 | Y32: 60.83926
C33: KL | D33: =ROW($D$30) -> 30 | E33: KL:1.2.1.2.1.2. | F33: Удалить | G33: =$G$29 & (ROWS($G$31:G33)-2)+1&"." -> 2.2. | H33: в траншеях | I33: многожильные | J33: резиновая и пластмассовая | K33: от 50 до 100 мм2 включительно | L33: один | M33: 1-10 кВ | W33: 0.03 | X33: 140 | Y33: 53.20223
C34: KL | D34: =ROW($D$30) -> 30 | E34: KL:1.2.1.3.1.1. | F34: Удалить | G34: =$G$29 & (ROWS($G$31:G34)-2)+1&"." -> 2.3. | H34: в траншеях | I34: многожильные | J34: резиновая и пластмассовая | K34: от 100 до 200 мм2 включительно | L34: один | M34: 0,4 кВ и ниже | S34: 0.38 | T34: 132 | U34: 338.17923
B35: 1 | C35: KL | D35: =ROW($D$30) -> 30 | F35: Удалить | G35: =$G$29 & (ROWS($G$31:G35)-2)+1&"." -> 2.4.
B36: 1
H37: Добавить
B38: 1
G39: 3. | H39: СТРОИТЕЛЬСТВО ПУНКТОВ СЕКЦИОНИРОВАНИЯ | O39: =SUM(O41:O43) -> 0 | P39: =SUM(P41:P43) -> 0 | Q39: =SUM(Q41:Q43) -> 0 | S39: =SUM(S41:S43) -> 0 | T39: =SUM(T41:T43) -> 0 | U39: =SUM(U41:U43) -> 0 | W39: =SUM(W41:W43) -> 0 | X39: =SUM(X41:X43) -> 0 | Y39: =SUM(Y41:Y43) -> 0 | AA39: =SUM(AA41:AA43) -> 0 | AB39: =SUM(AB41:AB43) -> 0 | AC39: =SUM(AC41:AC43) -> 0
H40: пункт секционирования: | I40: номинальный ток: | J40: количество ячеек в распределительном или переключательном пункте: | K40: уровень напряжения:
B41: 1
B42: 1 | C42: PS | D42: =ROW($D$40) -> 40 | F42: Удалить | G42: =$G$39 & (ROWS($G$41:G42)-2)+1&"." -> 3.1.
B43: 1
H44: Добавить
B45: 1
G46: 4. | H46: СТРОИТЕЛЬСТВО КОМПЛЕКТНЫХ ТРАНСФОРМАТОРНЫХ ПОДСТАНЦИЙ (КТП) С УРОВНЕМ НАПРЯЖЕНИЯ ДО 35 КВ | O46: =SUM(O48:O53) -> 1 | P46: =SUM(P48:P53) -> 15 | Q46: =SUM(Q48:Q53) -> 282.28 | S46: =SUM(S48:S53) -> 1 | T46: =SUM(T48:T53) -> 15 | U46: =SUM(U48:U53) -> 316.23271 | W46: =SUM(W48:W53) -> 3 | X46: =SUM(X48:X53) -> 165 | Y46: =SUM(Y48:Y53) -> 1741.01365 | AA46: =SUM(AA48:AA53) -> 0 | AB46: =SUM(AB48:AB53) -> 0 | AC46: =SUM(AC48:AC53) -> 0
H47: уровень напряжения: | I47: количество трансформаторов: | J47: трансформаторная мощность: | K47: тип трансформаторной подстанции:
B48: 1
C49: TS | D49: =ROW($D$47) -> 47 | E49: TS:1.1.1.1. | F49: Удалить | G49: =$G$46 & (ROWS($G$48:G49)-2)+1&"." -> 4.1. | H49: 6/0,4 кВ | I49: однотрансформаторные | J49: до 25 кВА включительно | K49: столбовой/мачтовый | O49: 1 | P49: 15 | Q49: 282.28 | S49: 1 | T49: 15 | U49: 316.23271
C50: TS | D50: =ROW($D$47) -> 47 | E50: TS:1.1.3.2. | F50: Удалить | G50: =$G$46 & (ROWS($G$48:G50)-2)+1&"." -> 4.2. | H50: 6/0,4 кВ | I50: однотрансформаторные | J50: от 100 до 250 кВА включительно | K50: шкафной или киосковый | W50: 2 | X50: =10+140 -> 150 | Y50: =539.13268+503.27845 -> 1042.41113
C51: TS | D51: =ROW($D$47) -> 47 | E51: TS:1.1.4.2. | F51: Удалить | G51: =$G$46 & (ROWS($G$48:G51)-2)+1&"." -> 4.3. | H51: 6/0,4 кВ | I51: однотрансформаторные | J51: от 250 до 400 кВА включительно | K51: шкафной или киосковый | W51: 1 | X51: 15 | Y51: 698.60252
B52: 1 | C52: TS | D52: =ROW($D$47) -> 47 | F52: Удалить | G52: =$G$46 & (ROWS($G$48:G52)-2)+1&"." -> 4.4.
B53: 1
H54: Добавить
B55: 1
G56: 5. | H56: СТРОИТЕЛЬСТВО РАСПРЕДЕЛИТЕЛЬНЫХ ТРАНСФОРМАТОРНЫХ ПОДСТАНЦИЙ (РТП) С УРОВНЕМ НАПРЯЖЕНИЯ ДО 35 КВ | O56: =SUM(O58:O60) -> 0 | P56: =SUM(P58:P60) -> 0 | Q56: =SUM(Q58:Q60) -> 0 | S56: =SUM(S58:S60) -> 0 | T56: =SUM(T58:T60) -> 0 | U56: =SUM(U58:U60) -> 0 | W56: =SUM(W58:W60) -> 0 | X56: =SUM(X58:X60) -> 0 | Y56: =SUM(Y58:Y60) -> 0 | AA56: =SUM(AA58:AA60) -> 0 | AB56: =SUM(AB58:AB60) -> 0 | AC56: =SUM(AC58:AC60) -> 0
H57: количество трансформаторов: | I57: трансформаторная мощность: | J57: уровень напряжения: | K57: тип распределительной трансформаторной подстанции:
B58: 1
B59: 1 | C59: RTP | D59: =ROW($D$57) -> 57 | F59: Удалить | G59: =$G$56 & (ROWS($G$58:G59)-2)+1&"." -> 5.1.
B60: 1
H61: Добавить
B62: 1
G63: 6. | H63: СТРОИТЕЛЬСТВО ЦЕНТРОВ ПИТАНИЯ, ПОДСТАНЦИЙ УРОВНЕМ НАПРЯЖЕНИЯ 35 КВ И ВЫШЕ (ПС) | O63: =SUM(O65:O67) -> 0 | P63: =SUM(P65:P67) -> 0 | Q63: =SUM(Q65:Q67) -> 0 | S63: =SUM(S65:S67) -> 0 | T63: =SUM(T65:T67) -> 0 | U63: =SUM(U65:U67) -> 0 | W63: =SUM(W65:W67) -> 0 | X63: =SUM(X65:X67) -> 0 | Y63: =SUM(Y65:Y67) -> 0 | AA63: =SUM(AA65:AA67) -> 0 | AB63: =SUM(AB65:AB67) -> 0 | AC63: =SUM(AC65:AC67) -> 0
H64: количество трансформаторов: | I64: трансформаторная мощность: | J64: уровень напряжения: | K64: тип центра питания, подстанции:
B65: 1
B66: 1 | C66: SP | D66: =ROW($D$64) -> 64 | F66: Удалить | G66: =$G$63 & (ROWS($G$65:G66)-2)+1&"." -> 6.1.
B67: 1
H68: Добавить
B69: 1
G70: 7. | H70: ОБЕСПЕЧЕНИЕ СРЕДСТВАМИ КОММЕРЧЕСКОГО УЧЕТА ЭЛЕКТРИЧЕСКОЙ ЭНЕРГИИ (МОЩНОСТИ) | O70: =SUM(O72:O77) -> 0 | P70: =SUM(P72:P77) -> 0 | Q70: =SUM(Q72:Q77) -> 0 | S70: =SUM(S72:S77) -> 0 | T70: =SUM(T72:T77) -> 0 | U70: =SUM(U72:U77) -> 0 | W70: =SUM(W72:W77) -> 71 | X70: =SUM(X72:X77) -> 1066 | Y70: =SUM(Y72:Y77) -> 1357.94036 | AA70: =SUM(AA72:AA77) -> 0 | AB70: =SUM(AB72:AB77) -> 0 | AC70: =SUM(AC72:AC77) -> 0
H71: количество фаз: | I71: тип включения: | J71: уровень напряжения:
B72: 1
C73: SKU | D73: =ROW($D$71) -> 71 | E73: SKU:1.1.1. | F73: Удалить | G73: =$G$70 & (ROWS($G$72:G73)-2)+1&"." -> 7.1. | H73: однофазный | I73: прямой | J73: 0,4 кВ и ниже | W73: =1+6 -> 7 | X73: =5+40 -> 45 | Y73: =11.31737+67.325 -> 78.64237
C74: SKU | D74: =ROW($D$71) -> 71 | E74: SKU:2.1.1. | F74: Удалить | G74: =$G$70 & (ROWS($G$72:G74)-2)+1&"." -> 7.2. | H74: трехфазный | I74: прямой | J74: 0,4 кВ и ниже | W74: =3+18+34+4+4 -> 63 | X74: =39+236+415+74+197 -> 961 | Y74: =47.863+302.148+581.356+71.234+58.766 -> 1061.367
C75: SKU | D75: =ROW($D$71) -> 71 | E75: SKU:2.3.2. | F75: Удалить | G75: =$G$70 & (ROWS($G$72:G75)-2)+1&"." -> 7.3. | H75: трехфазный | I75: косвенный | J75: 1-10 кВ | W75: 1 | X75: 60 | Y75: 217.93099
B76: 1 | C76: SKU | D76: =ROW($D$71) -> 71 | F76: Удалить | G76: =$G$70 & (ROWS($G$72:G76)-2)+1&"." -> 7.4.
B77: 1
H78: Добавить
B79: 1
G80: * - случае если в субъекте Российской Федерации за 3 предыдущих года не осуществлялось строительство тех объектов электросетевого хозяйства, в отношении которых устанавливаются стандартизированные тарифные ставки либо не осуществлялось обеспечение средствами коммерческого учета электрической энергии (мощности), расчет ставок может производиться исходя из данных за два предыдущих года, в случае отсутствия данных за два года - за предыдущий год, а при отсутствии данных за три года - по планируемым расходам, определенным по сметам, выполненным с применением сметных нормативов.
A81: ddShPr11City_rstop

Sheet Прил. № 2.1 (год-3)
A1: Приложение № 2.1
A2: ="Расходы на выполнение мероприятий по технологическому присоединению, предусмотренных пунктами "&CHAR(34)&"а"&CHAR(34)&" и "&CHAR(34)&"в"&CHAR(34)&" пункта 16 Методических указаний"&CHAR(10)&" за " &IF(Титульный!C12="","--- выберите период на листе Титульный ---",(Титульный!C12-3)) & " год" -> Расходы на выполнение мероприятий по технологическому присоединению, предусмотренных пунктами "а" и "в" пункта 16 Методических указаний за 2019 год
A3: № п/п | B3: Наименование мероприятий | C3: ="Год формирования расходов (согласно учетной политике сетевой организации) за " &IF(Титульный!C12="","--- выберите период на листе Титульный ---",(Титульный!C12-3)) & " год" -> Год формирования расходов (согласно учетной политике сетевой организации) за 2019 год
C4: Информация для расчета стандартизированной тарифной ставки С1 | G4: расходы на одно присоединение (руб. на 1 ТП)
C5: расходы согласно Приложению № 3 по каждому мероприятию (тыс. руб.) | D5: количество технологических присоединений (шт.) | E5: объем максимальной мощности (кВт) | F5: Итого расходы на одно присоединение (тыс.руб. на 1 ТП) (гр.3/ гр.4)
G6: до 35 кВ | I6: свыше 35 кВ включительно
G7: до 8900 кВт | H7: свыше 8900 кВт включительно | I7: до 8900 кВт | J7: свыше 8900 кВт включительно
A8: 1 | B8: 2 | C8: 3 | D8: 4 | E8: 5 | F8: 6 | G8: 15 | H8: 16 | I8: 17 | J8: 18
A9: 1 | B9: Подготовка и выдача сетевой организацией технических условий заявителю | C9: ='Прил. № 3.1 (''а'' п.16)'!E5 -> 205.9363868 | D9: 48 | E9: 613.5 | F9: =IF(D9=0,0,C9 /D9) -> 4.290341392 | G9: =IF(D9=0,0,C9/D9) -> 4.290341392 | H9: =IF(#REF!=0,0,#REF!/#REF!) ->  | I9: =IF(#REF!=0,0,#REF!/#REF!) ->  | J9: =IF(#REF!=0,0,#REF!/#REF!) -> 
A10: 2 | B10: Проверка сетевой организацией выполнения заявителем технических условий | C10: - | D10: - | E10: - | F10: - | G10: =IF(D10=0,0,C10/D10) ->  | H10: =IF(#REF!=0,0,#REF!/#REF!) ->  | I10: =IF(#REF!=0,0,#REF!/#REF!) ->  | J10: =IF(#REF!=0,0,#REF!/#REF!) -> 
A11: 3 | B11: Итого | C11: =C9+C10 ->  | D11: =D9+D10 ->  | G11: =IF(D11=0,0,C11/D11) ->  | H11: =IF(#REF!=0,0,#REF!/#REF!) ->  | I11: =IF(#REF!=0,0,#REF!/#REF!) ->  | J11: =IF(#REF!=0,0,#REF!/#REF!) -> 
A12: 2.1 | B12: Выдача сетевой организацией уведомления об обеспечении сетевой организацией возможности присоединения к электрическим сетям заявителям, указанным в абзаце шестом пункта 24 Методических указаний по определению размера платы за технологическое присоединение к электрическим сетям | C12: ='Прил. № 3.2 (''в'' п.16)'!E5 -> 448.7773032 | D12: 48 | E12: 613.5 | F12: =IF(D12=0,0,C12 /D12) -> 9.349527149 | G12: =IF(D12=0,0,C12/D12) -> 9.349527149 | H12: =IF(#REF!=0,0,#REF!/#REF!) ->  | I12: =IF(#REF!=0,0,#REF!/#REF!) ->  | J12: =IF(#REF!=0,0,#REF!/#REF!) -> 
A13: 2.2 | B13: Проверка сетевой организацией выполнения технических условий заявителями, указанными в абзаце седьмом пункта 24 Методических указаний по определению размера платы за технологическое присоединение к электрическим сетям | F13: 0 | G13: =IF(D13=0,0,C13/D13) -> 0 | H13: =IF(#REF!=0,0,#REF!/#REF!) ->  | I13: =IF(#REF!=0,0,#REF!/#REF!) ->  | J13: =IF(#REF!=0,0,#REF!/#REF!) -> 

Sheet Прил. № 2.2 (год-2)
A1: Приложение № 2.2
A2: ="Расходы на выполнение мероприятий по технологическому присоединению, предусмотренных пунктами "&CHAR(34)&"а"&CHAR(34)&" и "&CHAR(34)&"в"&CHAR(34)&" пункта 16 Методических указаний"&CHAR(10)&" за " &IF(Титульный!C12="","--- выберите период на листе Титульный ---",(Титульный!C12-2)) & " год" -> Расходы на выполнение мероприятий по технологическому присоединению, предусмотренных пунктами "а" и "в" пункта 16 Методических указаний за 2020 год
A3: № п/п | B3: Наименование мероприятий | C3: ="Год формирования расходов (согласно учетной политике сетевой организации) за " &IF(Титульный!C12="","--- выберите период на листе Титульный ---",(Титульный!C12-2)) & " год" -> Год формирования расходов (согласно учетной политике сетевой организации) за 2020 год
C4: Информация для расчета стандартизированной тарифной ставки С1 | G4: расходы на одно присоединение (руб. на 1 ТП)
C5: расходы согласно Приложению № 3 по каждому мероприятию (тыс. руб.) | D5: количество технологических присоединений (шт.) | E5: объем максимальной мощности (кВт) | F5: Итого расходы на одно присоединение (тыс.руб. на 1 ТП) (гр.3/ гр.4)
G6: до 35 кВ | I6: свыше 35 кВ включительно
G7: до 8900 кВт | H7: свыше 8900 кВт включительно | I7: до 8900 кВт | J7: свыше 8900 кВт включительно
A8: 1 | B8: 2 | C8: 3 | D8: 4 | E8: 5 | F8: 6 | G8: 15 | H8: 16 | I8: 17 | J8: 18
A9: 1 | B9: Подготовка и выдача сетевой организацией технических условий заявителю | C9: ='Прил. № 3.1 (''а'' п.16)'!D5 -> 281.1101576 | D9: 74 | E9: 1171 | F9: =IF(D9=0,0,C9 /D9) -> 3.798785914 | G9: =IF(D9=0,0,C9/D9) -> 3.798785914 | H9: =IF(#REF!=0,0,#REF!/#REF!) ->  | I9: =IF(#REF!=0,0,#REF!/#REF!) ->  | J9: =IF(#REF!=0,0,#REF!/#REF!) -> 
A10: 2 | B10: Проверка сетевой организацией выполнения заявителем технических условий | C10: - | D10: - | E10: - | F10: - | G10: =IF(D10=0,0,C10/D10) ->  | H10: =IF(#REF!=0,0,#REF!/#REF!) ->  | I10: =IF(#REF!=0,0,#REF!/#REF!) ->  | J10: =IF(#REF!=0,0,#REF!/#REF!) -> 
A11: 3 | B11: Итого | C11: =C9+C10 ->  | D11: =D9+D10 ->  | G11: =IF(D11=0,0,C11/D11) ->  | H11: =IF(#REF!=0,0,#REF!/#REF!) ->  | I11: =IF(#REF!=0,0,#REF!/#REF!) ->  | J11: =IF(#REF!=0,0,#REF!/#REF!) -> 
A12: 2.1 | B12: Выдача сетевой организацией уведомления об обеспечении сетевой организацией возможности присоединения к электрическим сетям заявителям, указанным в абзаце шестом пункта 24 Методических указаний по определению размера платы за технологическое присоединение к электрическим сетям | C12: 494.8362436 | D12: 69 | E12: 1071 | F12: =IF(D12=0,0,C12 /D12) -> 7.171539762 | G12: =IF(D12=0,0,C12/D12) -> 7.171539762 | H12: =IF(#REF!=0,0,#REF!/#REF!) ->  | I12: =IF(#REF!=0,0,#REF!/#REF!) ->  | J12: =IF(#REF!=0,0,#REF!/#REF!) -> 
A13: 2.2 | B13: Проверка сетевой организацией выполнения технических условий заявителями, указанными в абзаце седьмом пункта 24 Методических указаний по определению размера платы за технологическое присоединение к электрическим сетям | C13: 35.85769881 | D13: 5 | E13: 100 | F13: 7.171539762 | G13: =IF(D13=0,0,C13/D13) -> 7.171539762 | H13: =IF(#REF!=0,0,#REF!/#REF!) ->  | I13: =IF(#REF!=0,0,#REF!/#REF!) ->  | J13: =IF(#REF!=0,0,#REF!/#REF!) -> 

Sheet Прил. № 2.3 (год-1)
A1: Приложение № 2.3
A2: ="Расходы на выполнение мероприятий по технологическому присоединению, предусмотренных пунктами "&CHAR(34)&"а"&CHAR(34)&" и "&CHAR(34)&"в"&CHAR(34)&" пункта 16 Методических указаний"&CHAR(10)&" за " &IF(Титульный!C12="","--- выберите период на листе Титульный ---",(Титульный!C12-1)) & " год" -> Расходы на выполнение мероприятий по технологическому присоединению, предусмотренных пунктами "а" и "в" пункта 16 Методических указаний за 2021 год
A3: № п/п | B3: Наименование мероприятий | C3: ="Год формирования расходов (согласно учетной политике сетевой организации) за " &IF(Титульный!C12="","--- выберите период на листе Титульный ---",(Титульный!C12-1)) & " год" -> Год формирования расходов (согласно учетной политике сетевой организации) за 2021 год
C4: Информация для расчета стандартизированной тарифной ставки С1 | G4: расходы на одно присоединение (руб. на 1 ТП)
C5: расходы согласно Приложению № 3 по каждому мероприятию (тыс. руб.) | D5: количество технологических присоединений (шт.) | E5: объем максимальной мощности (кВт) | F5: Итого расходы на одно присоединение (тыс.руб. на 1 ТП) (гр.3/ гр.4)
G6: до 35 кВ | I6: свыше 35 кВ включительно
G7: до 8900 кВт | H7: свыше 8900 кВт включительно | I7: до 8900 кВт | J7: свыше 8900 кВт включительно
A8: 1 | B8: 2 | C8: 3 | D8: 4 | E8: 5 | F8: 6 | G8: 15 | H8: 16 | I8: 17 | J8: 18
A9: 1 | B9: Подготовка и выдача сетевой организацией технических условий заявителю | C9: ='Прил. № 3.1 (''а'' п.16)'!C5 -> 255.4582834 | D9: 92 | E9: 1431 | F9: =IF(D9=0,0,C9 /D9) -> 2.776720471 | G9: =IF(D9=0,0,C9/D9) -> 2.776720471 | H9: =IF(#REF!=0,0,#REF!/#REF!) ->  | I9: =IF(#REF!=0,0,#REF!/#REF!) ->  | J9: =IF(#REF!=0,0,#REF!/#REF!) -> 
A10: 2 | B10: Проверка сетевой организацией выполнения заявителем технических условий | C10: - | D10: - | E10: - | F10: - | G10: =IF(D10=0,0,C10/D10) ->  | H10: =IF(#REF!=0,0,#REF!/#REF!) ->  | I10: =IF(#REF!=0,0,#REF!/#REF!) ->  | J10: =IF(#REF!=0,0,#REF!/#REF!) -> 
A11: 3 | B11: Итого | C11: =C9+C10 ->  | D11: =D9+D10 ->  | G11: =IF(D11=0,0,C11/D11) ->  | H11: =IF(#REF!=0,0,#REF!/#REF!) ->  | I11: =IF(#REF!=0,0,#REF!/#REF!) ->  | J11: =IF(#REF!=0,0,#REF!/#REF!) -> 
A12: 2.1 | B12: Выдача сетевой организацией уведомления об обеспечении сетевой организацией возможности присоединения к электрическим сетям заявителям, указанным в абзаце шестом пункта 24 Методических указаний по определению размера платы за технологическое присоединение к электрическим сетям | C12: ='Прил. № 3.2 (''в'' п.16)'!C5*0.967391 -> 480.6214377 | D12: 89 | E12: 1206 | F12: =IF(D12=0,0,C12 /D12) -> 5.400240873 | G12: =IF(D12=0,0,C12/D12) -> 5.400240873 | H12: =IF(#REF!=0,0,#REF!/#REF!) ->  | I12: =IF(#REF!=0,0,#REF!/#REF!) ->  | J12: =IF(#REF!=0,0,#REF!/#REF!) -> 
A13: 2.2 | B13: Проверка сетевой организацией выполнения технических условий заявителями, указанными в абзаце седьмом пункта 24 Методических указаний по определению размера платы за технологическое присоединение к электрическим сетям | C13: ='Прил. № 3.2 (''в'' п.16)'!C5*0.032609 -> 16.20087892 | D13: 3 | E13: 225 | F13: 5.400292974 | G13: =IF(D13=0,0,C13/D13) -> 5.400292974 | H13: =IF(#REF!=0,0,#REF!/#REF!) ->  | I13: =IF(#REF!=0,0,#REF!/#REF!) ->  | J13: =IF(#REF!=0,0,#REF!/#REF!) -> 

Sheet Прил. № 3.1 ('а' п.16)
A1: Приложение № 3.1
A2: ="Расчет фактических расходов на выполнение мероприятий по технологическому присоединению, связанных с подготовкой и выдачей сетевой организацией технических условий заявителю, предусмотренных подпунктом "&CHAR(34)&"а"&CHAR(34)&" пункта 16 Методических указаний за " &IF(Титульный!C12="","--- выберите период на листе Титульный ---",(Титульный!C12-3) & "–" & (Титульный!C12-1) ) & " годы" -> Расчет фактических расходов на выполнение мероприятий по технологическому присоединению, связанных с подготовкой и выдачей сетевой организацией технических условий заявителю, предусмотренных подпунктом "а" пункта 16 Методических указаний за 2019–2021 годы
A3: № п/п | B3: Показатели | C3: =CONCATENATE("Данные за " &IF(Титульный!C12="","--- выберите период на листе Титульный ---",(Титульный!C12-1)) & " год,", CHAR(10)," тыс. рублей") -> Данные за 2021 год, тыс. рублей | D3: =CONCATENATE("Данные за " &IF(Титульный!C12="","--- выберите период на листе Титульный ---",(Титульный!C12-2)) & " год,", CHAR(10)," тыс. рублей") -> Данные за 2020 год, тыс. рублей | E3: =CONCATENATE("Данные за " &IF(Титульный!C12="","--- выберите период на листе Титульный ---",(Титульный!C12-3)) & " год,", CHAR(10)," тыс. рублей") -> Данные за 2019 год, тыс. рублей | F3: Итого, тыс. рублей
A4: 1 | B4: 2 | C4: 3 | D4: 4 | E4: 5 | F4: 6
A5: 1 | B5: Расходы по выполнению мероприятий по технологическому присоединению, всего | C5: =C6+C7+C8+C9+C10+C19 -> 255.4582834 | D5: =D6+D7+D8+D9+D10+D19 -> 281.1101576 | E5: =E6+E7+E8+E9+E10+E19 -> 205.9363868 | F5: =C5+D5+E5 -> 742.5048278
A6: 1.1 | B6: Вспомогательные материалы | C6: 34.19336686 | D6: 23.32554291 | E6: 7.311784134 | F6: =C6+D6+E6 -> 64.83069391
A7: 1.2 | B7: Энергия на хозяйственные нужды | F7: 0
A8: 1.3 | B8: Оплата труда ППП | C8: 65.94997307 | D8: 86.9792023 | E8: 62.02315691 | F8: 214.9523323
A9: 1.4 | B9: Отчисления на страховые взносы | C9: 20.00633934 | D9: 25.16719644 | E9: 18.49972777 | F9: 63.67326355
A10: 1.5 | B10: Прочие расходы, всего, в том числе: | C10: =SUM(C11:C13) -> 135.3086041 | D10: =SUM(D11:D13) -> 145.638216 | E10: =SUM(E11:E13) -> 118.101718 | F10: 399.0485381
A11: 1.5.1 | B11: работы и услуги производственного характера | C11: 135.3086041 | D11: 145.638216 | E11: 118.101718 | F11: 399.0485381
A12: 1.5.2 | B12: налоги и сборы, уменьшающие налогооблагаемую базу на прибыль организаций, всего | F12: 0
A13: 1.5.3 | B13: работы и услуги непроизводственного характера, в том числе: | C13: =SUM(C14:C18) -> 0 | D13: =SUM(D14:D18) -> 0 | E13: =SUM(E14:E18) -> 0 | F13: 0
A14: 1.5.3.1 | B14: услуги связи | F14: 0
A15: 1.5.3.2 | B15: расходы на охрану и пожарную безопасность | F15: 0
A16: 1.5.3.3 | B16: расходы на информационное обслуживание, иные услуги, связанные с деятельностью по технологическому присоединению | F16: 0
A17: 1.5.3.4 | B17: плата за аренду имущества | F17: 0
A18: 1.5.3.5 | B18: другие прочие расходы, связанные с производством и реализацией | F18: 0
A19: 1.6 | B19: Внереализованные расходы, всего | C19: =SUM(C20:C23) -> 0 | D19: =SUM(D20:D23) -> 0 | E19: =SUM(E20:E23) -> 0 | F19: 0
A20: 1.6.1 | B20: расходы на услуги банков | F20: 0
A21: 1.6.2 | B21: % за пользование кредитом | F21: 0
A22: 1.6.3 | B22: прочие обоснованные расходы | F22: 0
A23: 1.6.4 | B23: денежные выплаты социального характера ( по Коллективному договору) | F23: 0

Sheet Прил. № 3.2 ('в' п.16)
A1: Приложение № 3.2
A2: ="Расчет фактических расходов на выполнение мероприятий по технологическому присоединению, связанных с проверкой сетевой организацией выполнения заявителем технических условий, предусмотренных подпунктом "&CHAR(34)&"в"&CHAR(34)&" пункта 16 Методических указаний за " &IF(Титульный!C12="","--- выберите период на листе Титульный ---",(Титульный!C12-3) & "–" & (Титульный!C12-1) ) & " годы" -> Расчет фактических расходов на выполнение мероприятий по технологическому присоединению, связанных с проверкой сетевой организацией выполнения заявителем технических условий, предусмотренных подпунктом "в" пункта 16 Методических указаний за 2019–2021 годы
A3: № п/п | B3: Показатели | C3: =CONCATENATE("Данные за " &IF(Титульный!C12="","--- выберите период на листе Титульный ---",(Титульный!C12-1)) & " год,", CHAR(10)," тыс. рублей") -> Данные за 2021 год, тыс. рублей | D3: =CONCATENATE("Данные за " &IF(Титульный!C12="","--- выберите период на листе Титульный ---",(Титульный!C12-2)) & " год,", CHAR(10)," тыс. рублей") -> Данные за 2020 год, тыс. рублей | E3: =CONCATENATE("Данные за " &IF(Титульный!C12="","--- выберите период на листе Титульный ---",(Титульный!C12-3)) & " год,", CHAR(10)," тыс. рублей") -> Данные за 2019 год, тыс. рублей | F3: Итого, тыс. рублей
A4: 1 | B4: 2 | C4: 3 | D4: 4 | E4: 5 | F4: 6
A5: 1 | B5: Расходы по выполнению мероприятий по технологическому присоединению, всего | C5: =C6+C7+C8+C9+C10+C19 -> 496.8223166 | D5: =D6+D7+D8+D9+D10+D19 -> 530.6939424 | E5: =E6+E7+E8+E9+E10+E19 -> 448.7773032 | F5: =C5+D5+E5 -> 1476.293562
A6: 1.1 | B6: Вспомогательные материалы | C6: 66.50020314 | D6: 44.03513709 | E6: 15.93386587 | F6: =C6+D6+E6 -> 126.4692061
A7: 1.2 | B7: Энергия на хозяйственные нужды | F7: 0
A8: 1.3 | B8: Оплата труда ППП | C8: 128.2613269 | D8: 164.2037277 | E8: 135.1610831 | F8: 427.6261377
A9: 1.4 | B9: Отчисления на страховые взносы | C9: 38.90888066 | D9: 47.51190356 | E9: 40.31467223 | F9: 126.7354564
A10: 1.5 | B10: Прочие расходы, всего, в том числе: | C10: =SUM(C11:C13) -> 263.1519059 | D10: =SUM(D11:D13) -> 274.943174 | E10: =SUM(E11:E13) -> 257.367682 | F10: 795.4627619
A11: 1.5.1 | B11: работы и услуги производственного характера | C11: 263.1519059 | D11: 274.943174 | E11: 257.367682 | F11: 795.4627619
A12: 1.5.2 | B12: налоги и сборы, уменьшающие налогооблагаемую базу на прибыль организаций, всего | F12: 0
A13: 1.5.3 | B13: работы и услуги непроизводственного характера, в том числе: | C13: =SUM(C14:C18) -> 0 | D13: =SUM(D14:D18) -> 0 | E13: =SUM(E14:E18) -> 0 | F13: 0
A14: 1.5.3.1 | B14: услуги связи | F14: 0
A15: 1.5.3.2 | B15: расходы на охрану и пожарную безопасность | F15: 0
A16: 1.5.3.3 | B16: расходы на информационное обслуживание, иные услуги, связанные с деятельностью по технологическому присоединению | F16: 0
A17: 1.5.3.4 | B17: плата за аренду имущества | F17: 0
A18: 1.5.3.5 | B18: другие прочие расходы, связанные с производством и реализацией | F18: 0
A19: 1.6 | B19: Внереализованные расходы, всего | C19: =SUM(C20:C23) -> 0 | D19: =SUM(D20:D23) -> 0 | E19: =SUM(E20:E23) -> 0 | F19: 0
A20: 1.6.1 | B20: расходы на услуги банков | F20: 0
A21: 1.6.2 | B21: % за пользование кредитом | F21: 0
A22: 1.6.3 | B22: прочие обоснованные расходы | F22: 0
A23: 1.6.4 | B23: денежные выплаты социального характера ( по Коллективному договору) | F23: 0

Sheet Проверка
B1: Сообщение | C1: Адрес | D1: Статус

Sheet Справочник (hidden)
B1: VL1 | C1: VL2 | D1: VL3 | E1: VL4 | F1: VL5 | G1: VL6 | J1: KL1 | K1: KL2 | L1: KL3 | M1: KL4 | N1: KL5 | O1: KL6 | R1: PS1 | S1: PS2 | T1: PS3 | U1: PS4 | W1: TS1 | X1: TS2 | Y1: TS3 | Z1: TS4 | AB1: RTP1 | AC1: RTP2 | AD1: RTP3 | AE1: RTP4 | AG1: SP1 | AH1: SP2 | AI1: SP3 | AJ1: SP4 | AL1: SKU1 | AM1: SKU2 | AN1: SKU3 | AO1: SKU4 | AP1: SKU5 | AQ1: SKU6
B2: 1. ВЛ Воздушные линии | J2: 2. КЛ Кабельные линии | R2: 3. Пункты секционирования | W2: 4. ТП Трансформаторные подстанции | AB2: 5. РТП Распред. трансформаторные подстанции | AG2: 6. Подстанции | AL2: 7. СКУ Средства коммерческого учета
B3: строительство воздушных линий электропередачи | J3: строительство кабельных линий электропередачи | R3: строительство пунктов секционирования | W3: строительство комплектных трансформаторных подстанций (КТП) с уровнем напряжения до 35 кВ | AB3: строительство распределительных трансформаторных подстанций (РТП) с уровнем напряжения до 35 кВ | AG3: строительство центров питания, подстанций уровнем напряжения 35 кВ и выше (ПС) | AL3: обеспечение средствами коммерческого учета электрической энергии (мощности)
B4: тип опор: | C4: тип провода: | D4: материал провода: | E4: сечение провода: | F4: количество цепей: | G4: уровень напряжения: | J4: способ прокладки: | K4: количество жил: | L4: тип изоляции: | M4: сечение провода: | N4: количество кабелей в траншее, канале, туннеле или коллекторе, на галерее или эстакаде, труб в скважине: | O4: уровень напряжения: | R4: пункт секционирования: | S4: номинальный ток: | T4: количество ячеек в распределительном или переключательном пункте: | U4: уровень напряжения: | W4: уровень напряжения: | X4: количество трансформаторов: | Y4: трансформаторная мощность: | Z4: тип трансформаторной подстанции: | AB4: количество трансформаторов: | AC4: трансформаторная мощность: | AD4: уровень напряжения: | AE4: тип распределительной трансформаторной подстанции: | AG4: количество трансформаторов: | AH4: трансформаторная мощность: | AI4: уровень напряжения: | AJ4: тип центра питания, подстанции: | AL4: количество фаз: | AM4: тип включения: | AN4: уровень напряжения:
B5: деревянные | C5: изолированный | D5: медный | E5: до 50 мм2 включительно | F5: одноцепная | G5: 0,4 кВ и ниже | J5: в траншеях | K5: одножильные | L5: резиновая и пластмассовая | M5: до 50 мм2 включительно | N5: один | O5: 0,4 кВ и ниже | R5: реклоузеры | S5: до 100 А включительно | T5: до 5 ячеек включительно | U5: 0,4 кВ и ниже | W5: 6/0,4 кВ | X5: однотрансформаторные | Y5: до 25 кВА включительно | Z5: столбовой/мачтовый | AB5: однотрансформаторные | AC5: до 25 кВА включительно | AD5: 6(10)/0,4 кВ | AE5: открытого типа | AG5: однотрансформаторные | AH5: до 6,3 МВА включительно | AI5: 35/6(10) кВ | AJ5: открытого типа | AL5: однофазный | AM5: прямой | AN5: 0,4 кВ и ниже | AO5: 0,4 кВ и ниже | AP5: 0,4 кВ и ниже | AQ5: 1-10 кВ
B6: железобетонные опоры | C6: неизолированный | D6: стальной | E6: от 50 до 100 мм2 включительно | F6: двухцепная | G6: 1-20 кВ | J6: в блоках | K6: многожильные | L6: бумажная | M6: от 50 до 100 мм2 включительно | N6: два | O6: 1-10 кВ | R6: линейные разъединители | S6: от 100 до 250 А включительно | T6: от 5 до 10 ячеек включительно | U6: 1-20 кВ | W6: 10/0,4 кВ | X6: двухтрансформаторные | Y6: от 25 до 100 кВА включительно | Z6: шкафной или киосковый | AB6: двухтрансформаторные | AC6: от 25 до 100 кВА включительно | AD6: 20/0,4 кВ | AE6: закрытого типа | AG6: двухтрансформаторные | AH6: от 6,3 до 10 МВА включительно | AI6: 35/0,4 кВ | AJ6: закрытого типа | AL6: трехфазный | AM6: полукосвенный | AN6: 1-10 кВ | AO6: 1-20 кВ | AP6: 1-20 кВ | AQ6: 20 кВ
B7: металлические опоры | D7: сталеалюминиевый | E7: от 100 до 200 мм2 включительно | G7: 27,5-60 кВ | J7: в каналах | M7: от 100 до 200 мм2 включительно | N7: три | O7: 15-20 кВ | R7: выключатели нагрузки, устанавливаемые вне трансформаторных подстанций и распределительных и переключательных пунктов (РП) | S7: от 250 до 500 А включительно | T7: от 10 до 15 ячеек включительно | U7: 35 кВ | W7: 20/0,4 кВ | Y7: от 100 до 250 кВА включительно | Z7: блочный | AC7: от 100 до 250 кВА включительно | AH7: от 10 до 16 МВА включительно | AI7: 110/35 кВ | AM7: косвенный | AN7: 1-20 кВ | AP7: 35 кВ | AQ7: 35 кВ
B8: металлические опоры, за исключением многогранных | D8: алюминиевый | E8: от 200 до 500 мм2 включительно | G8: 110 кВ и выше | J8: в туннелях и коллекторах | M8: от 200 до 250 мм2 включительно | N8: четыре | O8: 27,5-60 кВ | R8: распределительные пункты (РП), за исключением комплектных распределительных устройств наружной установки (КРН, КРУН) | S8: от 500 до 1000 А включительно | T8: свыше 15 ячеек | U8: 110 кВ и выше | W8: 6/10 (10/6) кВ | Y8: от 250 до 400 кВА включительно | Z8: встроенный | AC8: от 250 до 400 кВА включительно | AH8: от 16 до 25 МВА включительно | AI8: 110/6(10) кВ | AN8: 20 кВ | AP8: 110 кВ и выше | AQ8: 110 кВ и выше
B9: многогранные металлические опоры | E9: от 500 до 800 мм2 включительно | J9: в галереях и эстакадах | M9: от 250 до 300 мм2 включительно | N9: более четырех | O9: 110 кВ и выше | R9: комплектные распределительные устройства наружной установки (КРН, КРУН) | S9: свыше 1000 А | W9: 10/20 (20/10) кВ | Y9: от 400 до 630 кВА включительно | AC9: от 400 до 630 кВА включительно | AH9: от 25 до 32 МВА включительно | AI9: 110/35/6(10) кВ | AN9: 35 кВ
E10: свыше 800 мм2 | J10: горизонтальное наклонное бурение | M10: от 300 до 400 мм2 включительно | R10: переключательные пункты | W10: 6/20 (20/6) кВ | Y10: от 630 до 1000 кВА включительно | AC10: от 630 до 1000 кВА включительно | AH10: от 32 до 40 МВА включительно | AN10: 110 кВ и выше
J11: подводная прокладка | M11: от 400 до 500 мм2 включительно | Y11: от 1000 до 1250 кВА включительно | AC11: от 1000 до 1250 кВА включительно | AH11: от 40 до 63 МВА включительно
M12: от 500 до 800 мм2 включительно | Y12: от 1250 до 1600 кВА включительно | AC12: от 1250 до 1600 кВА включительно | AH12: от 63 до 80 МВА включительно
M13: свыше 800 мм2 | Y13: от 1600 до 2000 кВА включительно | AC13: от 1600 до 2000 кВА включительно | AH13: от 80 до 100 МВА включительно
Y14: от 2000 до 2500 кВА включительно | AC14: от 2000 до 2500 кВА включительно | AH14: свыше 100 МВА
Y15: от 2500 до 3150 кВА включительно | AC15: от 2500 до 3150 кВА включительно
Y16: от 3150 до 4000 кВА включительно | AC16: свыше 3150 кВА
Y17: свыше 4000 кВА
